[Event "Lliga Catalana DH 2023"]
[Site "Catalonia"]
[Date "2023.02.04"]
[Round "3.8"]
[White "Bautista Sanchez, Joan"]
[Black "Molina Carretero, Daniel"]
[Result "0-1"]
[ECO "E05"]
[WhiteElo "2087"]
[BlackElo "2218"]
[Annotator "TA"]
[PlyCount "48"]
[EventDate "2023.01.24"]
[EventType "team-tourn"]
[EventCountry "ESP"]
[SourceTitle "playchess.com"]
[Source "ChessBase"]
[SourceQuality "1"]
[TimeControl "40/5400+30:1800+30"]

{[%evp 17,48,0,0,-42,-8,-50,-35,-60,-48,-40,19,0,0,0,19,12,25,0,21,3,0,-54,-53,-99,-95,-425,-429,-427,-416,-621,-599,-29991,-29992]} 1. Nf3 {[%emt 0:00:04]} Nf6 {[%emt 0:00:16]} 2. c4 {[%emt 0:00:16]} e6 {[%emt 0:00:20]} 3. g3 {[%emt 0:00:40]} d5 {[%emt 0:00:24]} 4. Bg2 {[%emt 0:01:26][%cal Bf1g2,Bg2c6,Bc6a4,Ba4c2][%mdl 32]} Be7 {[%emt 0:00:21]} 5. d4 {[%emt 0:00:55]} O-O {[%emt 0:00:30]} 6. O-O {[%emt 0:01:24]} dxc4 {[%emt 0:00:23]} 7. Ne5 {[%emt 0:00:57]} Nc6 {[%emt 0:01:48]} 8. Nxc6 {[%emt 0:03:43]} bxc6 {[%emt 0:00:24]} 9. Bxc6 {[%emt 0:02:10]} Rb8 {[%emt 0:01:28]} 10. e3 {[%emt 0:02:05] E05: Open Catalan: 5 Nf3 Be7.} Nd5 {[%emt 0:05:38][%cal Bf6d5,Bd5b4,Bb4c2][%mdl 32]} 11. Nc3 {[%emt 0:15:58]} Rb6 {[%emt 0:03:50]} 12. Ba4 {[%emt 0:01:08] Black is slightly better.} Bb7 {[%emt 0:04:21]} 13. Bc2 {[%emt 0:00:35] [#]} e5 $146 {[%emt 0:03:42]} ({Predecessor:} 13... Nxc3 14. bxc3 f5 15. Qe2 c5 16. dxc5 Bxc5 {0-1 Llorente Galardy,J-Lopez Gomez,J Luis Perez Marin mem 3rd corr 2001}) 14. e4 {[%emt 0:05:48]} (14. Qh5 g6 15. Qd1 (15. Qxe5 $2 f6 $19) 15... exd4 16. exd4 Bf6 $17) 14... Nb4 {[%emt 0:03:27]} 15. d5 {[%emt 0:05:26]} c6 {[%emt 0:14:49][%cal Rc6d5]} 16. Be3 {[%emt 0:03:36]} Ra6 {[%emt 0:00:29][%cal Rc6d5]} 17. a3 {[%emt 0:02:09]} Nxc2 {[%emt 0:14:28]} 18. Qxc2 {[%emt 0:00:12]} cxd5 {[%emt 0:05:25]} 19. exd5 {[%emt 0:01:16]} ({Better is} 19. Nxd5 $11 Bxd5 20. Rad1 {[%mdl 64] Pin}) 19... f5 $1 $15 {[%emt 0:03:51] Strongly threatening ...f4.} (19... Bxd5 20. Rfd1 Ra5 21. Rac1 $14) 20. f4 {[%emt 0:01:28] [#]} (20. Rae1 $15) 20... exf4 $1 $17 {[%emt 0:00:31][%mdl 64] Deflection} 21. Bxf4 {[%emt 0:03:20][%mdl 8192] Loses the game.} (21. Rxf4 $17 {was the crucial defense.} Bg5 22. Rf3) 21... Bc5+ $19 {[%emt 0:01:33] This pair of bishops is nice.} ({Not} 21... Bxd5 22. Nxd5 Qxd5 23. Be3 $17) 22. Kh1 {[%emt 0:00:01]} g5 {[%emt 0:03:11]} ({Inferior is} 22... Bxd5+ 23. Nxd5 Qxd5+ 24. Qg2 Qxg2+ 25. Kxg2 $17) 23. Bc1 {[%emt 0:02:23]} (23. Qd2 $142 gxf4 24. Rxf4) 23... Rd6 {[%emt 0:01:05] White must now prevent ...Rxd5.} ({And not} 23... Bxd5+ 24. Nxd5 Qxd5+ 25. Qg2 Qxg2+ 26. Kxg2 $17) 24. Rd1 {[%emt 0:01:05]} Rxd5 {[%emt 0:01:04] Weighted Error Value: White=0.89/Black=0.09 (flawless)} (24... Bxd5+ $2 25. Nxd5 f4 26. Qxc4 $18) 0-1

[Event "Lliga Catalana DH 2023"]
[Site "Catalonia"]
[Date "2023.02.04"]
[Round "3.9"]
[White "Martinez Ramirez, Erik"]
[Black "Pang, Khai Jie Ryan"]
[Result "1/2-1/2"]
[ECO "C54"]
[WhiteElo "2186"]
[BlackElo "1841"]
[Annotator "TA"]
[PlyCount "30"]
[EventDate "2023.01.24"]
[EventType "team-tourn"]
[EventCountry "ESP"]
[SourceTitle "playchess.com"]
[Source "ChessBase"]
[SourceQuality "1"]
[TimeControl "40/5400+30:1800+30"]

{[%evp 20,30,-37,-35,-47,-49,-44,-38,0,-51,0,-42,0]} 1. e4 e5 2. Nf3 Nc6 3. Bc4 Bc5 4. c3 {[%cal Bc2c3,Bc3d4,Bd4d5][%mdl 32]} Nf6 5. d4 exd4 6. cxd4 Bb4+ {[%cal Bc5b4,Bb4c3,Bc3f6][%mdl 32]} 7. Nc3 Nxe4 8. O-O Bxc3 9. d5 Bf6 10. Re1 Ne7 11. Rxe4 {[#] d6 would be deadly.} d6 {C54: Giuoco Piano: 4 c3 Nf6, main lines with 5 d4 and 5 d3.} 12. Rf4 {[#]} Ng6 $146 ({Predecessor:} 12... O-O 13. Rxf6 gxf6 14. Qd4 Ng6 15. Bh6 Re8 16. Bb5 Re5 17. Nxe5 fxe5 18. Qe3 Bd7 19. Bg5 Qe8 20. Bd3 f5 21. Rc1 c5 22. dxc6 bxc6 {1-0 Van Foreest,J (2688)-Aronian,L (2782) Chessable Masters Prelim rapid 2021 (1)}) 13. Re4+ Ne7 14. Rf4 $1 Ng6 (14... a6 $5) 15. Re4+ Ne7 {Black got outplayed after the opening.   Weighted Error Value: White=0.00 (flawless) /Black=0.24 (precise)} 1/2-1/2

[Event "Lliga Catalana DH 2023"]
[Site "Catalonia"]
[Date "2023.02.04"]
[Round "3.9"]
[White "Garcia Caro, Juan Alber"]
[Black "Travesset Ribera, Daniel"]
[Result "0-1"]
[ECO "E27"]
[WhiteElo "1958"]
[BlackElo "2094"]
[Annotator "TA"]
[PlyCount "106"]
[EventDate "2023.01.24"]
[EventType "team-tourn"]
[EventCountry "ESP"]
[SourceTitle "playchess.com"]
[Source "ChessBase"]
[SourceQuality "1"]
[TimeControl "40/5400+30:1800+30"]

{[%evp 11,106,-16,21,-27,-17,-20,-7,-20,-29,-16,-27,-40,-26,-53,-54,-108,-108,-119,-118,-122,-122,-156,-164,-160,-168,-158,-175,-184,-125,-214,-220,-213,-219,-227,-164,-157,-156,-299,-314,-321,-314,-360,-363,-358,-373,-333,-352,-425,-389,-402,-327,-302,-314,-298,-286,-329,-210,-537,-264,-524,-519,-481,-370,-463,-468,-651,-651,-786,-787,-1048,-777,-929,-907,-635,-608,-1756,-1825,-6307,-1186,-6319,0,-6307,-1419,-6195,-6194,-1168,-304,-489,-499,-476,-477,-1104,-992,-2111,-1228,-2196,-2057]} 1. d4 {[%emt 0:00:04]} Nf6 {[%emt 0:00:05]} 2. c4 {[%emt 0:00:04]} e6 {[%emt 0:00:03]} 3. Nc3 {[%emt 0:00:04]} Bb4 {[%emt 0:00:07]} 4. f3 {[%emt 0:00:08]} O-O {[%emt 0:02:33]} 5. a3 {[%emt 0:01:32]} Bxc3+ {[%emt 0:00:30]} 6. bxc3 {[%emt 0:00:04]} Ne8 {[%emt 0:00:21]} 7. Bf4 {[%emt 0:07:27] E27: Nimzo-Indian: Sämisch: 5...0-0 6 f3.} (7. e4 $142) 7... b6 $11 {[%emt 0:01:00]} 8. e4 {[%emt 0:08:42] [#]} Ba6 $146 {[%emt 0:02:23]} ({Predecessor:} 8... d6 9. Bg3 Ba6 10. Be2 Qe7 11. Nh3 Nc6 12. c5 Bxe2 13. cxd6 Nxd6 14. Qxe2 Na5 {0-1 Depner,J-Stoicescu,H (2066) ROM-ch sf Baile Tusnad 2000 (8)}) 9. Bd3 {[%emt 0:03:44] The position is equal.} Nc6 {[%emt 0:00:48]} 10. Nh3 $1 {[%emt 0:05:43]} Na5 {[%emt 0:01:23]} 11. Qe2 {[%emt 0:00:28]} c5 {[%emt 0:15:22]} 12. d5 {[%emt 0:23:09]} f6 {[%emt 0:02:02]} 13. Bg3 {[%emt 0:02:56]} (13. dxe6 $15 dxe6 14. e5) 13... e5 $17 {[%emt 0:04:39]} 14. f4 {[%emt 0:00:44]} Qe7 {[%emt 0:01:07]} 15. O-O {[%emt 0:14:49]} Nd6 {[%emt 0:13:44][%cal Ra6c4]} 16. Qg4 {[%emt 0:05:52]} Bxc4 {[%emt 0:14:09]} ({And not} 16... Naxc4 17. Qe2 $11) 17. Bxc4 {[%emt 0:08:31] [#] Threatens to win with Ba2.} Naxc4 {[%emt 0:00:45]} 18. fxe5 {[%emt 0:00:07]} Nxe5 {[%emt 0:01:28]} 19. Bxe5 {[%emt 0:00:40]} fxe5 {[%emt 0:11:09]} (19... Qxe5 $19 20. Qxd7 Rfd8) 20. Ng5 {[%emt 0:04:37]} (20. a4 $17) 20... h6 {[%emt 0:01:16]} 21. Nh3 {[%emt 0:00:53]} Rxf1+ {[%emt 0:02:11]} 22. Rxf1 {[%emt 0:00:03]} Rf8 {[%emt 0:00:28]} 23. Rxf8+ {[%emt 0:02:32]} Kxf8 $19 {[%emt 0:00:05][%mdl 4096] Endgame KQN-KQN} 24. Qe2 {[%emt 0:00:57]} (24. a4 $17 {was necessary.}) 24... Qh4 {[%emt 0:03:50]} 25. Nf2 {[%emt 0:00:12]} Qf4 {[%emt 0:01:24]} 26. Qe1 {[%emt 0:01:02]} c4 {[%emt 0:02:22]} 27. h3 {[%emt 0:03:08]} Ke7 {[%emt 0:03:59]} 28. a4 {[%emt 0:00:24]} Kd8 {[%emt 0:02:39]} 29. a5 {[%emt 0:02:30]} bxa5 {[%emt 0:00:35]} 30. Qa1 {[%emt 0:00:03]} Nxe4 {[%emt 0:02:29]} 31. Qxa5+ {[%emt 0:00:06]} Ke8 {[%emt 0:00:16]} 32. Nxe4 {[%emt 0:01:25]} Qxe4 {[%emt 0:00:06] KQ-KQ} 33. Kh1 {[%emt 0:02:41]} a6 {[%emt 0:02:43][%cal Ba7a6,Ba6a5][%mdl 32]} 34. d6 $2 {[%emt 0:01:25]} (34. Qc5) 34... Qb1+ {[%emt 0:00:31]} 35. Kh2 {[%emt 0:00:05]} Qb5 {[%emt 0:00:28]} 36. Qc7 {[%emt 0:00:38]} Qc6 {[%emt 0:00:33]} 37. Qb8+ {[%emt 0:00:11]} Kf7 {[%emt 0:00:07]} 38. Kg3 {[%emt 0:01:10]} a5 {[%emt 0:00:57]} 39. Kf2 {[%emt 0:00:35]} a4 {[%emt 0:00:30]} 40. Qb4 {[%emt 0:00:01]} Ke6 {[%emt 0:00:33]} 41. Kf1 {[%emt 0:30:46]} a3 {[%emt 0:30:23]} 42. Qxa3 {[%emt 0:00:08]} Qxd6 {[%emt 0:00:04]} 43. Qb2 {[%emt 0:00:31]} e4 {[%emt 0:00:53][%cal Be5e4,Be4e3][%mdl 32] [#] aiming for ...e3.} 44. Kf2 {[%emt 0:00:04]} Qf4+ {[%emt 0:00:18]} (44... e3+ $142 45. Kf3 g5) 45. Ke2 {[%emt 0:00:10]} Qd6 {[%emt 0:00:46]} 46. Kf2 $1 {[%emt 0:00:28]} Qc5+ {[%emt 0:00:18]} (46... e3+ $142 47. Kf3 g5) 47. Kf1 {[%emt 0:00:33]} e3 {[%emt 0:00:22]} 48. Ke2 {[%emt 0:00:37]} d5 $2 {[%emt 0:03:04]} (48... Qe5 49. Qb6+ d6) 49. Qb8 {[%emt 0:00:49]} (49. Qb1 {keeps fighting.} Ke5 50. Qb7) 49... Qd6 {[%emt 0:01:54] Black is clearly winning.} 50. Qc8+ {[%emt 0:00:39]} Kf6 {[%emt 0:00:14] And now ...Qe5 would win.} 51. Qg4 {[%emt 0:01:09]} (51. h4 $142 Qe5 52. Qf8+ Kg6 53. Qf3) 51... Qe5 {[%emt 0:00:26]} 52. Qh4+ {[%emt 0:00:25]} Ke6 {[%emt 0:00:36]} 53. Qg4+ {[%emt 0:00:50]} Qf5 {[%emt 0:00:24] Weighted Error Value: White=0.51/Black=0.22 (precise)} 0-1

[Event "Lliga Catalana DH 2023"]
[Site "Catalonia"]
[Date "2023.02.04"]
[Round "3.10"]
[White "Ano Pla, Gerard"]
[Black "Ramirez Carrizo, Victor Jose"]
[Result "1-0"]
[ECO "D40"]
[WhiteElo "2190"]
[BlackElo "2179"]
[Annotator "TA"]
[PlyCount "115"]
[EventDate "2023.01.24"]
[EventType "team-tourn"]
[EventCountry "ESP"]
[SourceTitle "playchess.com"]
[Source "ChessBase"]
[SourceQuality "1"]
[TimeControl "40/5400+30:1800+30"]

{[%evp 19,115,0,-7,0,-1,-6,-7,-5,-10,0,0,0,21,0,43,18,14,11,14,16,22,35,46,47,61,46,51,23,24,6,10,0,24,25,20,18,32,17,41,28,51,19,27,27,27,30,41,31,33,0,45,45,51,22,29,15,100,107,91,65,53,67,61,47,134,0,15,15,15,15,15,17,360,333,305,331,331,336,308,308,5096,5022,2525,914,2647,831,29982,29983,29982,29984,29988,29989,29988,29989,29989,29990,29990,29991]} 1. d4 {Sequera Paolini,Jose Rafael} d5 2. c4 e6 3. Nc3 c5 4. e3 Nf6 5. Nf3 Nc6 6. a3 a6 7. dxc5 Bxc5 8. b4 Bd6 9. Bb2 O-O 10. Qc2 Qe7 11. Rd1 {D40: Queen's Gambit Declined: Semi-Tarrasch with 5 e3.} Rd8 12. cxd5 exd5 13. Be2 {The position is equal.} Be6 14. O-O (14. Ng5 {looks sharper.} Rac8 15. O-O Be5 16. f4) 14... Rac8 15. Qb1 b5 {[#]} 16. Bd3 $146 ({Predecessor:} 16. Qa1 Qf8 17. Nb1 Nd7 18. Nd4 Nb6 19. Nd2 Nc4 20. Nxe6 fxe6 21. Nxc4 bxc4 22. Bg4 {1-0 Henriquez Villagra,C (2505)-Hou,Y (2673) Punta Arenas m 2016 (3)}) 16... h6 (16... Bg4 $5 {[%cal Rc6e5]}) 17. Ne2 Bg4 18. Bf5 Bxf5 19. Qxf5 Qe4 20. Qh3 Ne5 21. Nxe5 Bxe5 22. Ng3 $1 Bxg3 23. Qxg3 Qf5 24. Rc1 Rc4 25. Bd4 Qg6 26. Qxg6 fxg6 27. f3 Kf7 28. Rcd1 Ke6 29. Rd2 Rdc8 30. Rfd1 Rc1 31. Rxc1 Rxc1+ $11 {[%mdl 4096] Endgame KRB-KRN} 32. Kf2 Rc4 33. Ke2 g5 34. Kd3 Ne8 35. Ra2 g6 36. Bc3 (36. a4 $5 {[%cal Ra4b5]}) 36... g4 37. a4 Nc7 (37... gxf3 $11 {keeps the balance.} 38. gxf3 bxa4) 38. axb5 $16 axb5 39. Ra7 gxf3 40. gxf3 g5 $1 41. Rb7 Kd7 ({Black should try} 41... h5 $1 $14) 42. e4 {White is more active.} ({White has to play} 42. Be5 $16) 42... dxe4+ 43. fxe4 {Be5 is the strong threat.} Kc6 44. Rb8 Ne6 45. Rc8+ Kd6 $2 {[%mdl 8192] This move loses the game for Black.} (45... Nc7 $11 {and Black has nothing to worry.}) 46. Rxc4 $18 Nf4+ 47. Ke3 {[#] And now e5+ would win.} ({Don't take} 47. Kd4 $6 Ne6+ 48. Kd3 Nf4+ 49. Ke3 bxc4 $18) 47... bxc4 {KB-KN} 48. Kd4 h5 49. Bd2 Ne2+ (49... Ne6+ 50. Kxc4 h4) 50. Kxc4 g4 51. Be3 {[#] Threatening mate with Kd3.} Ke5 52. Kd3 (52. b5 $142 g3 53. b6 gxh2 54. b7) 52... Nf4+ 53. Bxf4+ {White mates.} Kxf4 54. b5 h4 55. b6 g3 56. hxg3+ hxg3 57. b7 g2 58. b8=Q+ {Weighted Error Value: White=0.12 (very precise) /Black=0.39} 1-0

[Event "Lliga Catalana DH 2023"]
[Site "Catalonia"]
[Date "2023.02.04"]
[Round "3.10"]
[White "Chiva Perez, Ferran"]
[Black "Terry Cuellar, Luis Antonio"]
[Result "0-1"]
[ECO "A45"]
[WhiteElo "1985"]
[BlackElo "2110"]
[Annotator "TA"]
[PlyCount "58"]
[EventDate "2023.01.24"]
[EventType "team-tourn"]
[EventCountry "ESP"]
[SourceTitle "playchess.com"]
[Source "ChessBase"]
[SourceQuality "1"]
[TimeControl "40/5400+30:1800+30"]

{[%evp 12,58,21,19,54,35,43,43,60,20,8,18,2,7,6,13,37,11,17,-37,13,-17,-27,-57,5,-56,-52,-54,-42,-41,-19,-32,27,8,22,-23,43,41,50,-53,-19,-81,-8,-16,0,-422,-387,-426,-421]} 1. d4 {[%emt 0:00:03]} Nf6 {[%emt 0:02:42]} 2. Bg5 {[%emt 0:00:09]} Ne4 {[%emt 0:01:56]} 3. Bf4 {[%emt 0:00:02]} c5 {[%emt 0:00:15]} 4. f3 {[%emt 0:00:25]} Qa5+ {[%emt 0:05:05]} 5. c3 {[%emt 0:00:02]} Nf6 {[%emt 0:00:29]} 6. d5 {[%emt 0:00:01]} Qb6 {[%emt 0:01:13]} 7. Bc1 {[%emt 0:05:01]} d6 {[%emt 0:01:35] A45: Trompowsky Attack.} 8. Na3 {[%emt 0:04:23]} g6 {[%emt 0:00:37]} 9. e4 {[%emt 0:12:18]} Bg7 {[%emt 0:00:20] White is slightly better.} 10. Bd3 {[%emt 0:04:25]} O-O {[%emt 0:00:31]} 11. Ne2 {[%emt 0:01:52]} e6 {[%emt 0:01:42]} 12. Nc4 {[%emt 0:08:09]} Qd8 {[%emt 0:01:37]} 13. dxe6 {[%emt 0:09:11] [#]} fxe6 $146 {[%emt 0:09:58]} ({Predecessor:} 13... Bxe6 14. Ne3 d5 15. e5 Nfd7 16. f4 Nc6 17. O-O d4 18. Nc4 b5 19. Nd6 Ndxe5 20. fxe5 Nxe5 21. Nxb5 {0-1 VERDUGO-Kasparov,G (2825) Internet blitz 5' 1998}) 14. e5 {[%emt 0:03:25]} dxe5 {[%emt 0:02:45]} 15. O-O {[%emt 0:08:42]} (15. Nxe5 $11 Nbd7 16. Nxd7 Bxd7 17. Bg5) 15... Qc7 {[%emt 0:06:36]} (15... b5 $15 16. Nxe5 c4) 16. Ng3 {[%emt 0:04:23][%mdl 1024] White has compensation.} b5 {[%emt 0:05:54]} 17. Nd2 {[%emt 0:01:51]} Nd5 {[%emt 0:02:05]} (17... c4 $15 18. Bc2 Nd5) 18. Nde4 {[%emt 0:01:17]} ({White should play} 18. Bxb5 $11 Ne3 {[%mdl 64] Deflection} 19. Qb3) 18... c4 $15 {[%emt 0:02:28]} 19. Bc2 {[%emt 0:00:12]} Bb7 {[%emt 0:00:53]} 20. h4 {[%emt 0:03:48]} Nd7 {[%emt 0:02:03]} 21. h5 {[%emt 0:05:06]} Rfd8 {[%emt 0:04:07]} (21... Nc5 $15) 22. hxg6 {[%emt 0:02:24]} hxg6 {[%emt 0:00:58]} 23. Ng5 {[%emt 0:15:14]} (23. Bg5 $5 {[%cal Rg5d8]}) 23... Nf8 {[%emt 0:02:37]} (23... Qb6+ $11 24. Kh1 Bf6) 24. Qe1 $14 {[%emt 0:01:26]} Nf4 {[%emt 0:14:44]} 25. Be4 {[%emt 0:01:15]} (25. N3e4 $14) 25... Bd5 {[%emt 0:02:22] [#] aiming for ...Bf6.} (25... Bf6 $5 26. Bxb7 Bxg5 27. Bxf4 (27. Bxa8 Bh4 $15) 27... exf4 $15) 26. Be3 {[%emt 0:01:02]} (26. Bc2 $11) 26... Qe7 {[%emt 0:05:27]} ({Black should try} 26... Bh6 $17 27. Nh3 Nxh3+ 28. gxh3 Bf4) 27. Bxd5 $11 {[%emt 0:02:13]} Nd3 {[%emt 0:07:48]} 28. Bxe6+ $2 {[%emt 0:03:03][%mdl 8192]} Nxe6 $19 {[%emt 0:00:18]} 29. Qd2 {[%emt 0:00:06]} Ndf4 {[%emt 0:00:11] Weighted Error Value: White=0.43/Black=0.28 (precise)} 0-1

[Event "Lliga Catalana DH 2023"]
[Site "Catalonia"]
[Date "2023.02.18"]
[Round "5.1"]
[White "Diaz Camallonga, Carles"]
[Black "Garriga Cazorla, Pere"]
[Result "1/2-1/2"]
[ECO "B22"]
[WhiteElo "2472"]
[BlackElo "2490"]
[Annotator "TA"]
[PlyCount "72"]
[EventDate "2023.01.24"]
[EventType "team-tourn"]
[EventCountry "ESP"]
[SourceTitle "playchess.com"]
[Source "ChessBase"]
[SourceQuality "1"]
[TimeControl "40/5400+30:1800+30"]

{[%evp 15,72,37,39,16,18,18,16,22,11,14,21,25,25,31,30,24,37,33,41,44,46,35,88,23,21,0,41,33,52,10,36,36,104,117,105,108,111,113,118,48,52,48,110,104,104,102,104,0,0,0,0,0,0,0,0,0,0,0,0]} 1. e4 {[%emt 0:02:14]} c5 {[%emt 0:02:21]} 2. Nf3 {[%emt 0:00:06]} e6 {[%emt 0:00:39]} 3. c3 {[%emt 0:00:29]} Nf6 {[%emt 0:00:55]} 4. e5 {[%emt 0:00:05]} Nd5 {[%emt 0:00:03]} 5. d4 {[%emt 0:00:37]} cxd4 {[%emt 0:00:22]} 6. cxd4 {[%emt 0:00:06]} b6 {[%emt 0:00:25]} 7. Bc4 {[%emt 0:01:26]} Bb7 {[%emt 0:00:05]} 8. O-O {[%emt 0:03:22]} Be7 {[%emt 0:04:32]} 9. Qe2 {[%emt 0:00:00] B22: Sicilian: 2 c3.} O-O {[%emt 0:04:28]} 10. Rd1 {[%emt 0:00:53]} d6 {[%emt 0:03:39]} 11. Bxd5 {[%emt 0:03:08]} Bxd5 {[%emt 0:01:48]} 12. Nc3 {[%emt 0:00:19]} Bxf3 {[%emt 0:00:12]} 13. Qxf3 {[%emt 0:00:07]} (13. gxf3 d5 $15) 13... d5 {[%emt 0:00:04]} 14. Qg4 {[%emt 0:05:21]} f5 {[%emt 0:14:15]} 15. exf6 {[%emt 0:00:43]} Rxf6 {[%emt 0:00:02]} 16. Ne2 {[%emt 0:21:31]} Nc6 {[%emt 0:09:13]} 17. Bg5 {[%emt 0:10:31] [#]} Rf5 $146 {[%emt 0:06:37]} ({Predecessor:} 17... Rf7 18. Bxe7 Qxe7 19. Rac1 Qd6 20. Qg3 Rd8 21. Qc3 Ne7 22. g3 Rc8 23. Qe3 Rxc1 24. Rxc1 {1-0 Harding,T (2356)-Schoepe,H (2257) VW-Cup10 Gr44 email 2017}) 18. Bh6 {[%emt 0:08:39][%csl Gh6][%cal Rg4g7] [#]} Qf8 {[%emt 0:12:37]} ({Black should play} 18... Bf8 $1 $14) 19. Ng3 {[%emt 0:03:46]} (19. Rac1 $16 Nd8 20. Rc7) 19... Rf6 $11 {[%emt 0:03:31] Threatens to win with ...Rg6.} 20. Be3 {[%emt 0:10:22]} (20. Bg5 $5 {[%cal Rg5f6]} Rg6 21. Bxe7 Qxe7 22. Qe2 $11) 20... Rc8 {[%emt 0:02:43]} 21. Rac1 {[%emt 0:01:02]} Bd6 {[%emt 0:03:56]} 22. Rc3 {[%emt 0:04:56]} (22. Nh5 {with more complications.} Rg6 23. Qe2 Rc7 24. Qb5) 22... Qe8 {[%emt 0:06:28]} 23. Rdc1 {[%emt 0:01:16]} Ne7 {[%emt 0:03:39]} ({Better is} 23... Rc7 $14) 24. Rxc8 {[%emt 0:00:54]} Nxc8 {[%emt 0:00:01] [#]} 25. Nh5 $1 {[%emt 0:01:30][%csl Gh5][%cal Rg4g7]} Rg6 {[%emt 0:00:17]} 26. Qe2 {[%emt 0:00:11] White has more active pieces.} Qd7 {[%emt 0:05:25]} 27. Qa6 {[%emt 0:03:26]} (27. Bf4 $16) 27... Ne7 $14 {[%emt 0:05:21]} 28. Bf4 {[%emt 0:05:43]} Rg4 {[%emt 0:00:23]} (28... h6 $14) 29. g3 $16 {[%emt 0:03:37]} Bxf4 {[%emt 0:00:44]} 30. Nxf4 {[%emt 0:00:00]} Qd6 {[%emt 0:00:24]} 31. Qxa7 {[%emt 0:04:55]} (31. Ne2 $16) 31... Qxf4 $11 {[%emt 0:03:15] The position is equal.} 32. Rc7 {[%emt 0:00:00]} Ng6 {[%emt 0:03:55] aiming for ...Qf6.} 33. Rxg7+ {[%emt 0:00:00]} (33. Qxb6 $2 Qf6 34. Rc8+ Nf8 $19) 33... Kf8 {[%emt 0:00:04]} 34. Rc7 {[%emt 0:00:00][%cal Ra7b8] Prevents Qc1+. Really sharp!} (34. Rxh7 Qc1+ 35. Kg2 Nf4+ 36. Kf3 Qd1+ 37. Ke3 Ng2#) 34... Kg8 {[%emt 0:00:05]} 35. Rg7+ {[%emt 0:02:33]} ({Of course not} 35. Qxb6 Qe4 36. Qb8+ Nf8 $15) 35... Kf8 {[%emt 0:00:08] ( -> ...Qc1+)} 36. Rc7 {[%emt 0:00:06][%cal Rc7c8] Repels Qc1+} (36. Rxh7 {is a self mate.} Qc1+ 37. Kg2 Nf4+ 38. Kf3 Qd1+ 39. Ke3 Ng2#) 36... Kg8 {[%emt 0:00:34] Weighted Error Value: White=0.13 (very precise) /Black=0.13 (very precise)} 1/2-1/2

[Event "Lliga Catalana DH 2023"]
[Site "Catalonia"]
[Date "2023.02.18"]
[Round "5.1"]
[White "Aguero Jimenez, Luis Lazaro"]
[Black "Peralta, Fernando"]
[Result "1/2-1/2"]
[ECO "B15"]
[WhiteElo "2436"]
[BlackElo "2596"]
[Annotator "TA"]
[PlyCount "69"]
[EventDate "2023.01.24"]
[EventType "team-tourn"]
[EventCountry "ESP"]
[SourceTitle "playchess.com"]
[Source "ChessBase"]
[SourceQuality "1"]
[TimeControl "40/5400+30:1800+30"]

{[%evp 14,69,31,24,20,21,41,21,19,23,21,8,4,1,18,-13,0,0,22,19,19,18,20,16,20,14,20,21,45,35,52,7,14,16,13,5,17,0,12,0,0,-8,-7,-23,0,0,14,14,14,14,20,0,28,0,26,0,31,0]} 1. e4 c6 2. d4 d5 3. Nd2 dxe4 4. Nxe4 Nf6 5. Nxf6+ exf6 6. c3 Bd6 7. Bd3 O-O 8. Qc2 {Active counter play!} Re8+ {B15: Caro-Kann: 3 Nc3: 3...g6 and 3...dxe4 4 Nxe4 Nf6 5 Nxf6+ exf6.} 9. Ne2 h5 10. Be3 Nd7 {The position is equal.} 11. O-O-O Nf8 12. Kb1 Be6 13. c4 Rc8 {[%cal Ob7b5]} 14. Qd2 Qd7 {[#]} 15. Ng3 $146 ({Predecessor:} 15. h3 b5 16. cxb5 Bd5 17. Rhg1 cxb5 18. g4 Bh2 19. Bf5 Ne6 20. Rge1 g6 21. Bd3 hxg4 22. hxg4 {½-½ Farias,D (1617)-Santos,J (2309) Famalicao op 8th 2021 (3)}) 15... h4 {[#]} 16. d5 $1 cxd5 17. cxd5 Bxd5 {[#]} 18. Bh7+ $1 {[%mdl 64] Discovered Attack} Nxh7 (18... Kxh7 19. Qxd5) 19. Qxd5 {And now Ne4 would win.} hxg3 20. hxg3 Qc6 {Hoping for ...Qc2+.} 21. Qxd6 Qxg2 22. Qd3 (22. Qd5 {simplifies} Qxd5 23. Rxd5 Nf8 24. Bxa7 Red8 25. Rhd1) 22... Nf8 {[%cal Oc8d8,Bh7f8,Bf8g6,Bg6e5,Be5d3][%mdl 32]} 23. Bxa7 Rcd8 24. Qc2 (24. Qb3 {is interesting.} Ng6 25. a3 Ne5 26. Ka2) 24... Ng6 (24... Qf3 {keeps more tension.} 25. Qb3 Qf5+ 26. Ka1 Rxd1+ 27. Rxd1 Re7) 25. Be3 Qf3 26. Rxd8 (26. a3 {seems wilder.} b5 27. Ka2 b4 28. axb4 Rd5 29. Kb1) 26... Rxd8 27. Rc1 Ne5 28. Bb6 Ra8 29. a3 Nd3 30. Rd1 Ne5 31. Rd4 Re8 32. Re4 Ra8 33. Rd4 Re8 34. Re4 Ra8 35. Rd4 {Weighted Error Value: White=0.10 (very precise) /Black=0.08 (flawless)} 1/2-1/2